bitfinex-derivatives/quotes_ETHF0:USTF0_20250917
["timestamp","ask_amount","ask_price","bid_price","bid_amount"]
[1758139197480,1.6749,4519.9,4519.8,0.46]
[1758139197680,1.6749,4519.4,4519.3,1.5857]
[1758139197876,0.4652,4519.4,4519.3,1.5857]
[1758139198178,3.2078,4520.3,4519.4,0.6787]
[1758139198179,0.667,4520.3,4519.4,0.6787]
[1758139198381,0.282,4520.5,4520.1,1.5878]
[1758139198382,1.0039105,4520.2,4520.1,1.5878]
[1758139198686,2.1483105,4520.2,4520.1,0.9091]
[1758139198979,2.1483105,4520.2,4520.1,1.5878]
[1758139198980,1.6193,4520.2,4520.1,1.5878]
[1758139199368,0.4749,4520.2,4520.1,1.5878]
[1758139199574,0.897,4520.5,4520.1,1.5878]
[1758139199778,1.6193,4520.3,4520.2,1.5878]
[1758139199972,0.667,4520.2,4519.8,3.2078]
[1758139200174,1.8897,4519.5,4519.1,3.2078]
[1758139200372,0.2704,4520.0,4519.2,0.6787]
[1758139200573,1.8897,4520.0,4519.9,0.4574]
[1758139200976,1.1419,4520.0,4519.9,1.5878]
[1758139201280,1.1419,4520.0,4519.8,3.2078]
[1758139201281,0.667,4519.9,4519.8,3.2078]
[1758139201479,0.667,4519.9,4519.2,0.6787]
[1758139201680,1.6193,4519.9,4519.8,1.5878]
[1758139202478,0.4749,4519.9,4519.8,1.5878]
[1758139202676,0.2704,4520.5,4519.9,0.6787]
[1758139202677,0.9374,4520.5,4519.9,0.6787]
[1758139202976,3.2078,4520.1,4519.2,4.7956]
[1758139203178,0.4749,4520.2,4520.1,1.5878]
[1758139203377,1.1419,4520.4,4520.3,1.5878]
[1758139203682,0.667,4520.7,4520.3,0.9091]
[1758139203878,0.23,4520.6,4520.5,0.9091]
[1758139204076,1.8493,4520.6,4520.5,0.4574]
[1758139204275,0.667,4521.1,4520.5,1.8772]
[1758139204474,0.23,4520.7,4520.6,0.6787]
[1758139204675,0.23,4520.7,4520.6,1.5878]
[1758139204881,0.667,4521.3,4520.7,0.6787]
[1758139205189,0.667,4521.7,4521.3,0.6787]
[1758139205385,2.38026278,4521.6,4521.5,0.4574]
[1758139206083,1.8493,4521.6,4521.5,1.5718]
[1758139206380,1.6193,4521.6,4521.5,1.5718]
[1758139206584,3.2078,4521.9,4521.8,0.9053]
[1758139206883,37.2207,4522.3,4522.2,1.5734]
[1758139207074,37.4342,4522.3,4522.2,1.5734]
[1758139207277,37.6642,4522.3,4522.2,1.5734]
[1758139207679,37.6642,4522.3,4521.5,3.4764]
[1758139207886,1.5822,4521.6,4521.5,4.1131]
[1758139208081,1.5822,4521.6,4521.5,4.7812]
[1758139208283,0.23,4521.9,4521.5,4.7812]
[1758139208483,0.23,4521.9,4521.8,0.9053]
[1758139208683,0.23,4521.9,4521.8,1.5734]
[1758139209080,1.3687,4521.9,4521.8,1.5734]
[1758139209585,0.6776,4521.9,4521.8,1.5734]
[1758139209789,0.23,4522.2,4521.9,0.6681]
[1758139209987,1.3687,4522.2,4522.1,1.5734]
[1758139210582,1.8122,4522.2,4522.1,0.9053]
[1758139210881,1.8122,4522.2,4522.1,0.459]
[1758139211080,1.8122,4522.2,4521.7,0.6681]
[1758139211276,1.1211,4522.2,4521.7,0.6681]
[1758139211488,1.8122,4522.2,4522.1,0.459]
[1758139212487,35.852,4522.3,4522.2,0.6681]
[1758139212689,36.5296,4522.3,4522.2,1.5734]
[1758139212886,37.2207,4522.3,4522.2,1.5734]
[1758139213285,1.3687,4522.3,4522.2,1.5734]
[1758139213491,1.8122,4522.3,4522.2,0.9053]
[1758139213681,1.8122,4522.3,4522.2,0.459]
[1758139214888,1.8122,4522.3,4522.2,1.5734]
[1758139215085,3.2078,4522.9,4522.2,1.5734]
[1758139215086,0.6911,4522.8,4522.2,1.5734]
[1758139215396,3.2078,4522.9,4522.4,1.5734]
[1758139215397,1.1387,4522.5,4522.4,1.5734]
[1758139215899,0.23,4522.6,4522.4,0.9053]
[1758139216188,1.3687,4522.6,4522.5,1.5734]
[1758139216886,1.1387,4522.6,4522.5,4.7812]
[1758139217087,1.1607,4523.2,4523.1,1.5734]
[1758139217279,1.3907,4523.2,4523.1,4.7812]
[1758139217480,1.3907,4523.2,4523.1,1.5734]
[1758139217898,1.3907,4523.2,4523.1,4.7812]
[1758139217899,1.6042,4523.2,4523.1,4.7812]
[1758139218193,0.022,4523.2,4523.1,4.7812]
[1758139218885,1.1607,4523.2,4523.1,4.7812]
[1758139219280,0.022,4523.2,4523.1,4.7812]
[1758139220184,0.022,4523.2,4523.1,5.0112]
[1758139220688,0.4696,4523.2,4523.1,4.7812]
[1758139220997,1.1607,4523.2,4523.1,4.7812]
[1758139221188,0.4696,4523.2,4523.1,4.7812]
[1758139221382,0.022,4523.2,4523.1,4.7812]
[1758139221587,3.2078,4524.1,4523.1,8.56418]
[1758139221783,4.79,4524.1,4524.0,1.5734]
[1758139222192,4.79,4524.1,4524.0,0.9053]
[1758139222388,3.2078,4524.1,4524.0,0.9053]
[1758139222595,3.6554,4524.1,4524.0,1.5734]
[1758139222789,1.1387,4524.1,4524.0,1.5734]
[1758139222984,0.4476,4524.1,4524.0,1.5734]
[1758139223193,0.9582,4524.5,4524.0,1.5734]
[1758139223194,0.9211,4524.4,4524.1,0.6681]
[1758139223492,0.6911,4524.6,4524.4,0.6681]
[1758139223692,0.6911,4524.6,4524.5,1.5734]
[1758139223693,1.1387,4524.6,4524.5,1.5734]
[1758139223886,0.2671,4526.0,4524.9,1.5734]
[1758139223887,3.2078,4525.4,4524.9,1.5734]
[1758139224092,3.2078,4525.4,4525.3,1.5734]
[1758139224093,1.1387,4525.4,4525.3,1.5734]
[1758139224392,1.5822,4525.4,4525.3,0.9053]
[1758139224591,0.6911,4525.9,4525.4,1.1271]
[1758139224798,0.8911,4525.5,4525.4,1.1271]
[1758139225097,0.8911,4525.5,4525.4,0.459]
[1758139225098,1.5822,4525.5,4525.4,0.459]
[1758139225294,1.8493,4525.5,4525.4,0.459]
[1758139225497,0.6911,4525.4,4525.0,3.8759]
[1758139225797,3.4749,4526.0,4525.0,3.8759]
[1758139225798,0.6911,4525.9,4525.3,4.7812]
[1758139225991,0.6911,4525.9,4525.3,4.1131]
[1758139226297,1.5822,4525.9,4525.8,0.459]
[1758139226589,0.6911,4525.9,4525.8,0.9053]
[1758139226796,3.7049,4526.5,4525.5,0.2686]
[1758139226996,1.21696401,4526.4,4525.6,0.8448]
[1758139227295,0.6911,4526.4,4525.6,0.8448]
[1758139227490,1.5822,4525.7,4525.6,1.7501]
[1758139227798,1.5822,4526.0,4525.9,1.5734]
[1758139227999,0.6911,4525.9,4525.6,0.1767]
[1758139228199,1.5822,4525.9,4525.8,0.459]
[1758139228392,1.5822,4525.9,4525.6,0.1767]
[1758139228694,0.23,4525.8,4525.6,0.1767]
[1758139228901,1.5822,4525.7,4525.6,0.1767]
[1758139229590,5.80316,4525.7,4525.6,0.1767]
[1758139229896,0.4476,4524.3,4524.2,0.9053]
[1758139230096,0.6911,4524.7,4524.2,1.5734]
[1758139230393,0.6911,4524.9,4524.3,0.6681]
[1758139230594,0.6911,4524.9,4524.8,0.459]
[1758139230789,1.1387,4524.9,4524.8,1.5734]
[1758139231402,1.5822,4524.9,4524.8,1.5734]
[1758139231803,1.5822,4524.9,4524.8,0.459]
[1758139232101,1.5822,4524.9,4524.8,1.5734]
[1758139232602,0.23,4525.6,4524.9,0.6681]
[1758139232796,1.5822,4524.7,4524.6,4.357]
[1758139233104,1.5822,4524.7,4524.6,0.0221]
[1758139235099,2.10921352,4524.7,4524.6,0.0221]
[1758139236491,0.2625,4524.0,4523.7,0.1768]
[1758139236697,1.5514,4523.8,4523.7,0.1768]
[1758139237499,1.5514,4523.8,4523.7,0.6165]
[1758139237701,2.0788754,4523.8,4523.7,0.1768]
[1758139237899,2.0788754,4523.8,4523.7,1.2741]
[1758139238100,0.5274754,4523.8,4523.7,1.7134]
[1758139238293,0.23,4524.0,4523.7,1.0558]
[1758139238496,1.5514,4523.9,4523.7,0.1768]
[1758139238901,0.9,4523.9,4523.7,0.1768]
[1758139239099,1.1095,4523.8,4523.7,1.0558]
[1758139239693,0.4581,4523.8,4523.7,1.7134]
[1758139240601,1.5514,4523.8,4523.7,0.1768]
[1758139241306,2.07958261,4523.8,4523.7,0.1768]
[1758139242503,2.07958261,4523.8,4523.7,0.6165]
[1758139242996,2.07958261,4523.8,4523.7,0.1768]
[1758139243204,5.28738261,4523.8,4523.7,0.1768]
[1758139244397,9.28738261,4523.8,4523.7,0.1768]
[1758139244602,1.8139,4523.0,4522.9,0.0221]
[1758139244803,2.57281271,4523.0,4522.9,0.0221]
[1758139245004,1.5514,4522.5,4522.4,4.3051]
[1758139245201,1.8139,4522.5,4522.4,3.6475]
[1758139245610,1.5514,4522.5,4522.4,4.7444]
[1758139245916,0.4581,4522.5,4522.4,4.7444]
[1758139246103,0.23,4522.7,4522.4,4.0868]
[1758139246304,0.6881,4522.7,4522.6,1.5366]
[1758139246707,1.3395,4522.7,4522.6,1.5366]
[1758139246905,1.7814,4522.7,4522.6,1.5366]
[1758139247402,0.6514,4522.6,4522.4,3.2078]
[1758139247606,1.8139,4522.5,4522.4,3.6475]
[1758139247806,1.5514,4522.5,4522.4,4.7444]
[1758139248106,1.5514,4522.5,4522.4,4.0868]
[1758139248308,1.5514,4522.5,4522.4,4.7444]
[1758139248512,0.9,4522.5,4522.4,4.7444]
[1758139248710,0.4581,4522.5,4522.4,4.7444]
[1758139248915,1.1095,4522.6,4522.5,1.5366]
[1758139249308,1.5514,4522.6,4522.5,1.5366]
[1758139250116,1.5514,4522.6,4522.4,3.2078]
[1758139250317,1.8139,4522.5,4522.4,3.6475]
[1758139251512,1.8139,4522.5,4522.4,4.7444]
[1758139251708,0.23,4522.7,4522.6,0.879]
[1758139251913,3.2078,4523.3,4522.7,0.6576]
[1758139252112,0.52884379,4523.2,4523.1,1.5366]
[1758139252312,3.4378,4523.3,4523.2,0.6576]
[1758139252514,1.21589524,4523.3,4523.2,1.5366]
[1758139252715,0.52779524,4523.3,4523.2,1.5366]
[1758139253017,3.8592,4523.8,4523.0,3.4895]
[1758139253018,0.23,4523.7,4523.5,0.2817]
[1758139253320,0.6881,4523.7,4523.6,1.5366]
[1758139253512,1.21579773,4523.7,4523.6,1.5366]
[1758139255214,0.4581,4523.7,4523.6,1.5366]
[1758139255417,3.2078,4523.8,4523.7,0.6576]
[1758139255418,3.4378,4523.8,4523.7,0.6576]
[1758139255734,3.8959,4523.8,4523.7,1.5366]
[1758139255912,0.4581,4523.8,4523.7,1.5366]
[1758139256111,3.9284,4524.5,4524.4,0.879]
[1758139256315,4.42378066,4524.5,4524.4,1.5366]
[1758139256619,5.51708066,4524.5,4524.4,1.5366]
[1758139257221,2.07928066,4524.5,4524.4,1.5366]
[1758139257422,1.7814,4524.5,4524.4,1.5366]
[1758139258218,0.6881,4524.5,4524.4,1.5366]
[1758139258919,1.8137,4524.5,4524.4,1.5366]
[1758139259217,2.61259916,4524.5,4523.9,0.6767]
[1758139259422,2.084,4524.5,4523.9,0.6767]
[1758139260618,2.084,4524.5,4524.4,0.4573]
[1758139260823,2.61268682,4524.5,4524.4,1.134]
[1758139261026,1.21678682,4524.5,4524.4,1.5663]
[1758139261717,1.5594,4523.9,4523.8,3.2078]
[1758139262521,1.5594,4523.9,4523.3,0.6767]
[1758139263720,1.5594,4523.9,4523.8,1.5663]
[1758139264119,3.2078,4524.8,4523.9,0.6767]
[1758139264120,0.696,4524.4,4523.9,0.6767]
[1758139264325,0.696,4525.2,4524.7,1.5663]
[1758139264627,0.4338,4524.9,4524.8,1.5663]
[1758139265115,1.1298,4524.9,4524.8,1.5663]
[1758139265317,1.5594,4524.9,4524.8,1.5663]
[1758139265920,0.8634,4524.9,4524.8,1.5663]
[1758139266120,0.659,4525.2,4524.9,0.6562]
[1758139266318,0.659,4525.2,4524.8,0.8896]
[1758139266319,36.052,4525.5,4525.3,0.6562]
[1758139266524,37.579,4525.5,4525.4,0.4627]
[1758139266717,37.8425,4525.5,4524.5,0.9103]
[1758139266925,0.659,4525.4,4524.5,0.9103]
[1758139267129,36.3155,4525.5,4524.5,0.9103]
[1758139267328,0.659,4525.4,4524.5,0.2541]
[1758139267523,0.659,4525.4,4524.6,0.6562]
[1758139269026,0.4338,4524.7,4524.6,1.5564]
[1758139270024,0.23,4525.0,4524.7,0.6562]
[1758139270235,0.23,4525.0,4524.9,0.9002]
[1758139270427,1.3228,4525.0,4524.9,1.5564]
[1758139270623,1.757,4525.0,4524.9,1.5564]
[1758139271330,0.23,4525.2,4525.1,0.9002]
[1758139271526,0.23,4525.4,4525.2,0.6562]
[1758139271729,0.23,4525.4,4525.0,0.2553]
[1758139271730,1.527,4525.9,4525.8,0.4627]
[1758139272132,1.527,4525.9,4525.8,1.1189]
[1758139273321,1.527,4525.9,4525.8,1.5564]
[1758139273521,1.60507688,4528.2,4526.4,0.6562]
[1758139273522,3.8668,4526.9,4526.4,0.6562]
[1758139273729,0.6638,4526.8,4526.7,1.5564]
[1758139274634,1.757,4526.8,4526.2,0.6562]
[1758139274832,0.659,4526.7,4525.8,3.864]
[1758139275038,0.23,4526.8,4525.8,3.864]
[1758139275536,1.0928,4526.7,4526.6,1.5564]
[1758139275836,0.4338,4526.7,4526.6,1.5564]
[1758139276137,1.0928,4526.7,4526.6,1.5564]
[1758139276335,0.23,4526.8,4526.6,0.9002]
[1758139276526,1.3228,4526.8,4526.7,1.5564]
[1758139277232,1.757,4526.8,4526.7,0.4627]
[1758139277630,1.527,4526.4,4526.3,1.1189]
[1758139278029,1.527,4526.4,4526.3,1.5564]
[1758139278828,1.527,4526.4,4526.3,0.4627]
[1758139279533,1.527,4526.4,4526.3,1.5564]
[1758139280126,0.4338,4526.4,4526.3,1.5564]
[1758139280328,0.229,4526.5,4526.3,0.9002]
[1758139280524,0.229,4526.5,4526.4,0.6562]
[1758139280839,1.756,4526.5,4526.4,0.9002]
[1758139281038,1.756,4526.5,4526.4,1.5564]
[1758139281238,0.229,4526.6,4526.5,1.8117]
[1758139281533,4.3006,4526.9,4526.8,1.5564]
[1758139281731,0.2635,4528.5,4526.5,0.2553]
[1758139281732,0.229,4526.6,4526.5,1.8117]
[1758139281933,0.229,4526.8,4526.6,0.6562]
[1758139282133,0.229,4526.8,4526.7,0.9002]
[1758139282333,0.6628,4526.8,4526.7,1.5564]
[1758139282634,36.472,4527.4,4526.8,0.6562]
[1758139282934,1.756,4527.3,4527.2,1.5564]
[1758139283136,1.756,4527.3,4527.2,0.4627]
[1758139283323,1.756,4527.3,4526.5,0.2553]
[1758139283324,1.756,4527.3,4526.7,0.6562]
[1758139283929,0.659,4527.1,4526.6,0.6562]
[1758139284132,4.0758,4527.0,4526.9,0.4627]
[1758139284440,4.7348,4527.0,4526.9,1.1189]
[1758139284737,5.2273,4527.0,4526.9,0.4627]
[1758139285637,0.659,4526.9,4526.1,0.6562]
[1758139286034,1.527,4526.9,4526.8,0.4627]
[1758139286337,1.527,4526.9,4526.8,1.5564]
[1758139286539,1.527,4526.9,4526.0,0.2553]
[1758139287534,1.527,4526.9,4526.1,0.6562]
[1758139288039,1.527,4526.9,4526.8,0.4627]
[1758139288240,1.756,4526.9,4526.8,1.5564]
[1758139288636,1.097,4526.9,4526.8,1.5564]
[1758139289337,1.097,4526.9,4525.8,3.2078]
[1758139289338,0.868,4525.9,4525.8,3.2078]
[1758139289537,0.2635,4525.5,4525.2,3.2078]
[1758139289740,1.527,4525.3,4525.2,3.2078]
[1758139290039,1.527,4525.3,4525.2,3.6705]
[1758139290242,1.527,4525.3,4525.2,3.2078]
[1758139291138,1.7905,4525.0,4524.5,3.864]
[1758139291336,1.7905,4525.0,4524.0,0.2774]
[1758139291337,2.0205,4525.0,4524.1,0.6562]
[1758139291535,2.0205,4525.0,4524.5,0.6562]
[1758139291733,1.7905,4525.0,4524.9,0.6394]
[1758139291943,1.527,4525.0,4524.9,1.2956]
[1758139292139,1.757,4525.0,4524.9,1.2956]
[1758139292641,1.757,4525.0,4524.9,1.7331]
[1758139292845,2.0205,4525.0,4524.9,0.1767]
[1758139293643,0.2635,4524.5,4524.0,0.0221]
[1758139293943,1.527,4524.1,4524.0,0.0221]
[1758139294245,1.757,4524.1,4524.0,0.0221]
[1758139295542,0.9238,4524.0,4523.2,0.6409]
[1758139298946,1.548,4523.5,4523.4,1.0694]
[1758139299338,1.8147,4523.5,4523.3,0.0221]
[1758139301145,1.548,4523.1,4523.0,0.117]
[1758139301349,1.778,4523.1,4523.0,0.117]
[1758139301845,1.778,4523.1,4522.1,3.2078]
[1758139301846,0.2667,4522.5,4522.1,3.2078]
[1758139302044,1.548,4522.2,4521.8,0.6409]
[1758139302344,1.548,4522.1,4522.0,0.4285]
[1758139302540,1.548,4522.1,4522.0,1.0694]
[1758139302848,0.23,4522.4,4522.0,1.1156]
[1758139303049,0.23,4522.6,4522.5,1.1156]
[1758139303348,0.6771,4522.6,4522.5,1.7565]
[1758139303557,1.778,4522.6,4522.5,1.4845]
[1758139304845,1.1209,4522.6,4522.5,1.4845]
[1758139305052,0.23,4522.6,4522.5,1.7565]
[1758139305350,1.778,4522.7,4522.6,1.0694]
[1758139305546,1.778,4522.7,4522.6,1.4845]
[1758139305749,1.778,4522.7,4522.6,0.4285]
[1758139306147,0.6571,4522.6,4522.0,0.9129]
[1758139306352,0.6571,4522.0,4521.8,3.2078]
[1758139306650,1.548,4521.9,4521.8,4.2772]
[1758139306849,1.548,4521.9,4521.8,4.6923]
[1758139306850,0.4471,4521.9,4521.8,4.6923]
[1758139307242,1.1042,4521.9,4521.8,4.6923]
[1758139307645,0.4471,4521.9,4521.8,4.6923]
[1758139308045,1.1042,4521.9,4521.8,4.6923]
[1758139308447,1.548,4521.9,4521.8,4.6923]
[1758139308947,0.8909,4521.9,4521.8,4.6923]
[1758139309156,0.231,4522.0,4521.8,4.6923]
[1758139309353,0.231,4522.0,4521.9,1.4845]
[1758139310252,0.6781,4522.0,4521.9,1.4845]
[1758139311049,3.4745,4523.0,4521.8,3.2078]
[1758139311050,0.6571,4522.9,4522.0,0.272]
[1758139311253,1.548,4522.2,4522.1,1.4845]
[1758139311452,1.779,4522.2,4522.1,1.4845]
[1758139311850,0.6781,4522.2,4522.1,1.4845]
[1758139312452,0.6571,4522.5,4522.1,1.4845]
[1758139312650,0.6781,4522.6,4522.5,1.7565]
[1758139313259,1.779,4522.6,4522.5,1.7565]
[1758139313652,1.1219,4522.6,4522.5,1.7565]
[1758139314557,0.231,4522.6,4522.5,1.7565]
[1758139315558,0.6781,4522.6,4522.5,1.7565]
[1758139315752,1.779,4522.6,4522.5,1.4845]
[1758139316756,1.779,4522.6,4522.5,1.7565]
[1758139317955,1.779,4522.6,4522.5,1.4845]
[1758139318252,1.779,4522.6,4522.5,1.7319]
[1758139318446,1.1219,4522.6,4522.5,1.7319]
[1758139318857,1.7992,4522.6,4522.5,1.7319]
[1758139319060,0.9257,4522.5,4522.4,3.8247]
[1758139319259,1.3444,4522.6,4522.5,1.7615]
[1758139319759,1.7975,4522.6,4522.5,1.7615]
[1758139319960,1.7975,4522.6,4522.5,1.5141]
[1758139320657,1.7975,4522.6,4522.5,0.4471]
[1758139320859,1.7975,4522.6,4522.5,1.064]
[1758139321154,0.4361,4522.1,4522.0,1.1692]
[1758139321354,0.6773,4522.4,4522.0,1.1692]
[1758139321551,1.1202,4522.6,4522.5,0.8972]
[1758139321751,0.8892,4522.6,4522.5,1.7615]
[1758139322161,0.4361,4522.6,4522.5,1.7615]
[1758139323262,0.9656258,4522.6,4522.5,1.7615]
[1758139323849,0.5295258,4522.6,4522.5,4.9693]
[1758139324056,44.0078,4523.7,4523.3,0.8972]
[1758139324057,1.1304,4523.4,4523.3,0.8972]
[1758139324256,1.195789,4523.4,4523.3,4.7219]
[1758139324755,0.965789,4523.4,4523.3,4.7219]
[1758139324963,0.759689,4523.4,4523.3,4.7219]
[1758139325357,0.529689,4523.4,4523.3,4.7219]
[1758139326260,0.6761,4524.2,4523.7,0.6612]
[1758139326561,0.23,4523.9,4523.8,4.7125]
[1758139326965,0.75970699,4523.9,4523.8,4.7125]
[1758139327148,0.94650699,4523.9,4523.8,4.7125]
[1758139327352,2.05330699,4523.9,4523.8,1.5047]
[1758139327566,2.05330699,4523.9,4523.4,0.6612]
[1758139327749,1.5236,4523.5,4523.4,1.5047]
[1758139328761,0.9229,4524.0,4523.4,1.5047]
[1758139328963,0.94836182,4523.9,4523.8,4.7125]
[1758139330456,0.94836182,4523.9,4523.8,1.5047]
[1758139330667,2.05516182,4523.9,4523.8,1.5047]
[1758139332251,2.05516182,4523.9,4523.3,3.2078]
[1758139332252,1.37906182,4523.9,4523.3,3.2078]
[1758139332456,1.5236,4523.5,4523.4,1.5047]
[1758139334662,1.7704,4523.5,4523.4,0.4357]
[1758139335062,1.7704,4523.5,4523.3,3.2078]
[1758139335259,1.5236,4523.4,4523.3,3.2078]
[1758139335454,1.5236,4523.4,4523.2,0.0221]
[1758139335455,1.7536,4523.4,4523.2,0.0221]
[1758139335856,1.97468,4523.4,4523.2,0.0221]
[1758139336066,5.74468,4523.3,4523.2,0.0221]
[1758139336257,1.5236,4522.6,4522.5,3.2078]
[1758139337360,1.5236,4522.6,4522.5,3.6435]
[1758139337761,1.5236,4522.6,4522.5,4.7125]
[1758139337961,0.8475,4522.6,4522.5,4.9589]
[1758139338261,2.77038455,4525.7,4522.5,4.9589]
[1758139338262,4.9782,4523.5,4523.4,1.0969]
[1758139338463,5.74006933,4523.5,4523.4,1.0969]
[1758139338866,5.74006933,4523.5,4523.4,0.4357]
[1758139339166,1.60936933,4523.5,4523.4,1.5047]
[1758139339861,0.53186933,4523.5,4523.4,1.5047]
[1758139340067,0.6761,4524.6,4524.0,1.7511]
[1758139340365,0.4168,4524.1,4524.0,1.7511]
[1758139340565,1.5236,4524.6,4524.5,0.4357]
[1758139340769,2.28542433,4524.6,4524.5,1.5047]
[1758139342071,2.28543692,4524.6,4524.5,1.5047]
[1758139342364,2.28543692,4524.6,4524.5,1.7511]
[1758139342365,1.60933692,4524.6,4524.5,1.7511]
[1758139342872,2.28543692,4524.6,4524.5,1.7511]
[1758139343975,0.53183692,4524.6,4524.5,1.7511]
[1758139344175,0.23,4524.7,4524.5,1.7511]
[1758139344372,39.7099,4525.4,4525.3,0.4357]
[1758139344373,40.1267,4525.4,4525.3,0.4357]
[1758139344572,41.32546053,4525.4,4525.0,0.6612]
[1758139344770,1.5236,4525.1,4525.0,1.0969]
[1758139345075,2.06166053,4525.1,4525.0,1.0969]
[1758139345876,2.06166053,4525.1,4525.0,1.7511]
[1758139346575,2.06166053,4525.1,4525.0,1.5047]
[1758139347072,2.29166053,4525.1,4525.0,1.7511]
[1758139347268,2.29166053,4525.1,4525.0,1.5047]
[1758139347474,2.29166053,4525.1,4525.0,0.4357]
[1758139347772,0.6761,4524.6,4524.4,3.2078]
[1758139347978,1.5236,4524.5,4524.4,3.6435]
[1758139348270,0.23,4524.7,4524.5,0.2464]
[1758139348480,1.5236,4525.3,4525.2,0.8435]
[1758139348675,2.29179134,4525.3,4525.2,1.5047]
[1758139349372,2.29181792,4525.3,4525.2,1.5047]
[1758139350174,2.29181792,4525.3,4525.2,0.4357]
[1758139351875,2.29181792,4525.3,4525.2,1.0969]
[1758139352174,0.6761,4525.9,4525.3,0.6612]
[1758139352370,1.18488241,4525.8,4525.7,0.8435]
[1758139352570,0.6468,4525.8,4525.7,1.5047]
[1758139353378,1.7536,4525.8,4525.7,1.5047]
[1758139353573,1.5236,4525.8,4525.7,1.5047]
[1758139353777,0.6468,4525.8,4525.7,1.5047]
[1758139353968,0.4168,4525.8,4525.7,1.5047]
[1758139354172,0.6468,4525.8,4525.7,1.5047]
[1758139355069,1.0775,4525.8,4525.7,1.5047]
[1758139355383,1.7536,4525.8,4525.7,1.5047]
[1758139355882,1.0775,4525.8,4525.7,1.5047]
[1758139356375,1.7226,4525.8,4525.7,1.5047]
[1758139356978,1.0775,4525.8,4525.7,1.5047]
[1758139357182,0.6468,4525.8,4525.7,1.5047]
[1758139357380,3.4546,4526.5,4525.7,1.5047]
[1758139357581,2.26035012,4526.4,4526.3,1.0458]
[1758139358179,2.26035012,4526.4,4526.3,0.4336]
[1758139359284,2.03035012,4526.4,4526.3,1.4572]
[1758139359478,2.26035012,4526.4,4526.3,1.4572]
[1758139360177,2.03035012,4526.4,4526.3,1.4572]
[1758139360379,2.26035012,4526.4,4526.3,1.4572]
[1758139361077,0.94415012,4526.4,4526.3,1.4572]
[1758139361282,35.817,4526.9,4526.8,1.4572]
[1758139361483,36.047,4526.9,4526.8,1.4572]
[1758139361683,37.5388,4526.9,4526.8,1.4572]
[1758139361985,38.07672751,4526.9,4526.8,1.4572]
[1758139362281,37.5388,4526.9,4526.8,1.4572]
[1758139362482,37.5388,4526.9,4526.8,0.4336]
[1758139362681,36.8937,4526.9,4526.5,0.6122]
[1758139362879,1.4918,4526.8,4526.7,1.4572]
[1758139363077,1.7218,4526.8,4526.7,1.4572]
[1758139365998,0.8467,4526.2,4526.1,0.4336]
[1758139366285,1.7218,4526.2,4525.6,0.6122]
[1758139366480,1.7218,4526.2,4526.1,1.0458]
[1758139366679,1.7218,4526.2,4526.1,1.4572]
[1758139367189,1.7218,4526.2,4526.1,0.4336]
[1758139367387,1.7218,4526.2,4526.1,1.0458]
[1758139367989,1.7218,4526.2,4525.6,0.6122]
[1758139368282,1.7218,4526.2,4526.1,0.4336]
[1758139368489,1.7218,4526.2,4526.1,1.0458]
[1758139368788,1.7218,4526.2,4526.1,0.4336]
[1758139369292,1.7218,4526.2,4526.1,1.4572]
[1758139370079,3.2078,4526.4,4526.1,0.845]
[1758139370286,1.7208,4526.3,4526.2,1.4572]
[1758139370487,1.7208,4526.3,4526.2,0.4336]
[1758139370792,1.7208,4526.3,4526.2,1.0458]
[1758139371090,1.7208,4526.3,4526.2,1.4572]
[1758139371985,2.25960872,4526.3,4525.6,0.6122]
[1758139372183,0.229,4526.2,4525.6,0.6122]
[1758139372388,1.0757,4526.2,4526.1,0.4336]
[1758139372588,1.7208,4526.2,4526.1,1.0458]
[1758139372986,1.0757,4526.2,4526.1,1.4572]
[1758139373792,0.6451,4526.5,4526.1,1.4572]
[1758139373995,1.16922729,4526.4,4526.3,0.845]
[1758139374196,2.25542729,4526.4,4526.3,1.4572]
[1758139374493,2.02642729,4526.4,4526.3,1.4572]
[1758139374696,0.76362729,4526.4,4526.2,0.4336]
[1758139374901,0.229,4526.4,4526.3,1.4572]
[1758139375287,0.76369844,4526.4,4526.3,1.4572]
[1758139375492,0.53469844,4526.4,4526.3,1.4572]
[1758139375691,0.76369844,4526.4,4526.3,1.4572]
[1758139376297,0.229,4526.4,4526.3,1.4572]
[1758139378187,1.699,4526.4,4526.3,1.4572]
[1758139378395,2.23418142,4526.4,4526.3,1.4572]
[1758139378798,1.47,4526.1,4526.0,1.0538]
[1758139378991,35.817,4526.9,4526.1,0.6183]
[1758139379297,2.2341999,4526.8,4526.4,0.6183]
[1758139379600,1.3482999,4526.7,4526.6,1.0538]
[1758139379990,2.0051999,4526.7,4526.6,1.0538]
[1758139380192,2.0051999,4526.7,4526.1,0.6183]
[1758139380498,1.47,4526.2,4526.1,1.4607]
[1758139380699,1.699,4526.2,4526.1,1.4607]
[1758139381100,1.699,4526.2,4526.1,0.4355]
[1758139381296,1.82933495,4526.2,4526.1,1.4607]
[1758139381496,2.23483495,4526.2,4526.1,1.4607]
[1758139381697,0.76483495,4526.2,4526.1,1.4607]
[1758139381998,0.229,4526.4,4526.3,0.8424]
[1758139382297,0.229,4526.4,4526.3,1.4607]